[Event "Swietokrzyskie IM Chess-ch 2022"]
[Site "Zagnansk"]
[Date "2022.05.01"]
[Round "3.3"]
[White "Malek, Jan"]
[Black "Prokofiev, Valentyn"]
[Result "1-0"]
[ECO "C80"]
[WhiteElo "2316"]
[BlackElo "2287"]
[Annotator "TA"]
[PlyCount "81"]
[EventDate "2022.04.29"]
[EventCountry "POL"]
[SourceTitle "playchess.com"]
[Source "ChessBase"]
[SourceQuality "1"]
[TimeControl "40/5400+30:1800+30"]

{[%evp 13,81,56,55,48,60,43,47,47,59,19,54,54,57,50,40,39,50,42,29,39,35,41,52,55,56,43,48,20,55,55,50,53,64,42,38,42,70,60,68,42,50,6,48,48,61,43,44,49,56,0,7,6,32,4,43,35,30,38,6399,6387,6383,6340,29977,29978,29978,29979,29978,29979,29969,29969]} 1. e4 {[%emt 0:00:02]} e5 {[%emt 0:00:04]} 2. Nf3 {[%emt 0:00:12]} Nc6 {[%emt 0:00:04]} 3. Bb5 {[%emt 0:00:06]} a6 {[%emt 0:00:04]} 4. Ba4 {[%emt 0:00:06]} Nf6 {[%emt 0:00:04]} 5. O-O {[%emt 0:00:06]} Nxe4 {[%emt 0:00:03]} 6. d4 {[%emt 0:00:30]} Be7 {[%emt 0:00:02]} 7. Re1 {[%emt 0:00:19]} b5 {[%emt 0:00:04]} 8. Rxe4 {[%emt 0:00:12] And now Bb3 would win. C84: Closed Ruy Lopez: Unusual White 6th moves.} d5 {[%emt 0:00:02] [#]} 9. Nxe5 $1 {[%emt 0:00:11]} Nxe5 {[%emt 0:00:03]} 10. Rxe5 {[%emt 0:00:11] White is slightly better.} bxa4 {[%emt 0:00:02]} 11. Qe2 {[%emt 0:00:12]} c6 {[%emt 0:00:16]} 12. Nc3 {[%emt 0:00:33][%cal Bb1c3,Bc3a4,Ba4c5][%mdl 32]} Ra7 {[%emt 0:00:17]} 13. Bf4 {[%emt 0:03:02]} O-O {[%emt 0:05:32]} 14. Re1 {[%emt 0:00:06][%cal Re5e7]} (14. Nxa4 Bd6 15. Re1 Bxe5 16. Qxe5 Bd7 $15) 14... Be6 {[%emt 0:02:43] [#]} 15. Nxa4 $146 {[%emt 0:00:59]} ({Predecessor:} 15. Re3 a3 16. bxa3 Bf6 17. Qd2 c5 18. Ne2 c4 19. Ng3 Bh4 20. h3 Rb7 21. Nh5 {1-0 (47) Boudey,S (2000)-Bourgault,J (1966) ICCF email 2020}) 15... Bf6 {[%emt 0:07:42]} 16. Rxe6 {[%emt 0:00:13]} fxe6 {[%emt 0:00:03]} 17. Nc5 {[%emt 0:00:08]} Re7 {[%emt 0:06:57]} 18. Qd2 {[%emt 0:22:24][%mdl 1024] White has compensation.} (18. Nxe6 $2 Rfe8 19. c3 Qc8 $19) 18... Rfe8 {[%emt 0:07:25]} 19. Be5 {[%emt 0:01:02]} ({Not} 19. Nxa6 Qb6 20. Nb4 (20. Nc5 $2 e5 $19) 20... Bxd4 $17) 19... Rf7 {[%emt 0:05:01]} 20. g3 {[%emt 0:06:20]} Qb6 {[%emt 0:06:37]} 21. c3 {[%emt 0:00:54]} Bxe5 {[%emt 0:08:44]} 22. Rxe5 {[%emt 0:00:29]} Rf5 {[%emt 0:00:11]} 23. Rxe6 {[%emt 0:01:42] White is more active.} Rxe6 {[%emt 0:00:41]} 24. Nxe6 $14 {[%emt 0:00:04][%mdl 4096] Endgame KQR-KQN} h6 {[%emt 0:04:03]} 25. Nc5 {[%emt 0:03:24]} Rf7 {[%emt 0:07:53]} 26. b3 {[%emt 0:07:52]} (26. Qe2 $5 {[%cal Re2e8]} Qb5 27. Qc2 $16 (27. Qe8+ Rf8 $11)) 26... Re7 {[%emt 0:01:39]} 27. a4 {[%emt 0:00:09]} Qd8 {[%emt 0:01:15]} 28. Nxa6 {[%emt 0:03:09]} Qe8 {[%emt 0:00:36] Hoping for ...Re1+.} 29. Nc5 {[%emt 0:00:14]} Re2 {[%emt 0:00:56]} 30. Qd3 {[%emt 0:01:22]} Ra2 {[%emt 0:02:35] ...Qe1+ is the strong threat.} 31. Qf5 {[%emt 0:26:01]} (31. Qf1 $14) 31... Qf7 {[%emt 0:04:48]} 32. Qxf7+ {[%emt 0:02:26]} Kxf7 $11 {[%emt 0:00:03] KR-KN} 33. Kg2 {[%emt 0:02:24]} Ke7 {[%emt 0:00:45]} 34. Kf3 {[%emt 0:00:08]} Rc2 {[%emt 0:00:58]} 35. a5 {[%emt 0:00:25][%cal Ba4a5,Ba5a6][%mdl 32] Threatens to win with a6.} Rxc3+ $2 {[%emt 0:00:12][%mdl 8192] [#] Black cannot hold the game after this.} (35... Kd8 $14) 36. Kg2 $1 $18 {[%emt 0:01:18] White threatens a6 and mate.} Kd6 {[%emt 0:03:07]} 37. a6 {[%emt 0:00:06] a7 would kill now.} Rxc5 {[%emt 0:00:01]} 38. dxc5+ {[%emt 0:00:07] White mates.} Kc7 {[%emt 0:00:01]} 39. f4 {[%emt 0:01:11]} Kb8 {[%emt 0:00:02]} 40. g4 {[%emt 0:00:00][%cal Bg3g4,Bg4g5][%mdl 32]} Ka7 {[%emt 0:00:00]} 41. g5 {[%emt 0:16:22] Weighted Error Value: White=0.10 (very precise) /Black=0.35} 1-0

[Event "Swietokrzyskie IM Chess-ch 2022"]
[Site "Zagnansk"]
[Date "2022.05.01"]
[Round "3.4"]
[White "Manik, GM Mikulas"]
[Black "Wikar, WFM Martyna"]
[Result "1/2-1/2"]
[ECO "B31"]
[WhiteElo "2367"]
[BlackElo "2197"]
[Annotator "TA"]
[PlyCount "41"]
[EventDate "2022.04.29"]
[EventCountry "POL"]
[SourceTitle "playchess.com"]
[Source "ChessBase"]
[SourceQuality "1"]
[TimeControl "40/5400+30:1800+30"]

{[%evp 11,41,1,7,16,31,12,20,25,22,19,23,28,25,6,8,0,9,0,0,0,0,0,0,9,18,-14,-13,-16,0,0,0,-4]} 1. e4 {[%emt 0:00:02]} c5 {[%emt 0:00:05]} 2. Nf3 {[%emt 0:00:02]} Nc6 {[%emt 0:00:08]} 3. Bb5 {[%emt 0:00:05]} g6 {[%emt 0:00:05]} 4. O-O {[%emt 0:00:10]} Bg7 {[%emt 0:00:10]} 5. Re1 {[%emt 0:00:08]} e5 {[%emt 0:01:20]} 6. b4 {[%emt 0:00:09]} Nxb4 {[%emt 0:00:50]} 7. Bb2 {[%emt 0:00:36] B31: Sicilian: 2...Nc6 3 Bb5 g6.} a6 {[%emt 0:02:03] [#]} 8. a3 $1 {[%emt 0:01:59][%cal Ba2a3,Ba3b4,Bb4c5][%mdl 32]} axb5 {[%emt 0:00:59]} (8... Nc6 9. Bxc6) 9. axb4 {[%emt 0:00:09]} Rxa1 {[%emt 0:02:25]} 10. Bxa1 {[%emt 0:00:02]} d6 {[%emt 0:02:15]} 11. bxc5 {[%emt 0:01:48]} Ne7 {[%emt 0:00:48]} 12. Qe2 {[%emt 0:06:29]} b4 {[%emt 0:02:01] The position is equal.} 13. Qb5+ {[%emt 0:13:32]} Nc6 {[%emt 0:05:01] [#]} 14. cxd6 $146 {[%emt 0:01:24]} ({Predecessor:} 14. d4 dxc5 15. Nxe5 Bxe5 16. dxe5 Qa5 17. Qxa5 Nxa5 18. e6 Rg8 19. exf7+ Kxf7 20. Nd2 {1-0 (41) Daggupati,B (2443)-Tarun,K (2343) Chess.com INT 2022}) 14... Qxd6 {[%emt 0:03:15]} 15. d3 {[%emt 0:00:33]} O-O {[%emt 0:03:59]} 16. Nbd2 {[%emt 0:00:15]} Be6 {[%emt 0:21:11]} 17. Nc4 {[%emt 0:04:43]} Bxc4 {[%emt 0:06:23]} 18. dxc4 {[%emt 0:02:43]} Qc7 {[%emt 0:06:33]} 19. c3 {[%emt 0:13:29]} bxc3 {[%emt 0:05:08]} 20. Bxc3 {[%emt 0:00:05]} Nd4 {[%emt 0:01:54]} 21. Bxd4 {[%emt 0:04:30] Not much happened in this game.  Weighted Error Value: White=0.06 (flawless) /Black=0.04 (flawless)} 1/2-1/2

[Event "Swietokrzyskie IM Chess-ch 2022"]
[Site "Zagnansk"]
[Date "2022.05.01"]
[Round "3.5"]
[White "Vlachos, IM Anatole"]
[Black "Krzywda, CM Andrzej"]
[Result "1-0"]
[ECO "B31"]
[WhiteElo "2406"]
[BlackElo "2152"]
[Annotator "TA"]
[PlyCount "91"]
[EventDate "2022.04.29"]
[EventCountry "POL"]
[SourceTitle "playchess.com"]
[Source "ChessBase"]
[SourceQuality "1"]
[TimeControl "40/5400+30:1800+30"]

{[%evp 16,91,25,24,19,21,27,19,55,43,41,45,58,-60,57,0,-9,-7,55,48,35,-21,11,17,66,67,66,36,41,37,55,52,70,58,81,76,107,93,103,91,113,85,129,144,155,134,140,147,230,222,241,240,392,349,382,356,371,333,494,379,662,648,701,691,796,789,1129,1126,1139,1089,1118,1108,1085,1059,1206,1251,1171,1113]} 1. e4 {[%emt 0:00:01] Ramirez Alvarez,A} c5 {[%emt 0:00:04]} 2. Nf3 {[%emt 0:00:07]} Nc6 {[%emt 0:00:04]} 3. Bb5 {[%emt 0:00:12]} g6 {[%emt 0:00:06]} 4. Bxc6 {[%emt 0:00:15]} dxc6 {[%emt 0:00:05]} 5. d3 {[%emt 0:00:06]} Bg7 {[%emt 0:00:05]} 6. h3 {[%emt 0:00:06]} Nf6 {[%emt 0:00:05]} 7. Nc3 {[%emt 0:00:09]} Nd7 {[%emt 0:00:22] is now more promising than 7...0-0.} 8. Be3 {[%emt 0:00:07]} e5 {[%emt 0:00:30]} 9. Qd2 {[%emt 0:00:21]} h6 {[%emt 0:00:14] B31: Sicilian: 2...Nc6 3 Bb5 g6.} 10. O-O {[%emt 0:00:20]} b6 {[%emt 0:00:07]} 11. Nh2 {[%emt 0:00:41]} g5 {[%emt 0:00:19] The position is equal.} 12. Ne2 {[%emt 0:02:10]} Nf8 {[%emt 0:00:35]} 13. Ng3 {[%emt 0:07:14]} Ng6 {[%emt 0:00:12] [#]} 14. Nf5 $146 {[%emt 0:02:42]} ({White should play} 14. a3 $14) ({Predecessor:} 14. a3 O-O 15. b4 cxb4 16. axb4 Nh4 17. f3 f5 18. exf5 Nxf5 19. Nxf5 Bxf5 20. Ra6 {½-½ (44) Caruana,F (2787)-Nakamura,H (2793) Saint Louis 2015 CBM 169 Extra [Ramirez Alvarez,A]}) 14... O-O {[%emt 0:07:55]} (14... Bxf5 $15 15. exf5 Ne7) 15. Qe2 {[%emt 0:03:27]} (15. Nxg7 $14 Kxg7 16. Qe2) 15... Bxf5 $11 {[%emt 0:07:46]} 16. exf5 {[%emt 0:00:02]} Nf4 {[%emt 0:05:43]} ({Better is} 16... Nh4 $11) 17. Qf3 {[%emt 0:05:22]} Qd5 {[%emt 0:03:11]} 18. Qe4 {[%emt 0:01:52]} (18. g3 $14) 18... Rfe8 {[%emt 0:07:04][%cal Oc5c4]} (18... c4 $5 {[%cal Rc4d3]}) 19. Rfe1 {[%emt 0:08:41]} Rad8 {[%emt 0:05:03]} (19... c4 $11) 20. b3 $14 {[%emt 0:04:03]} Qd7 {[%emt 0:03:00]} 21. Bc1 {[%emt 0:15:48]} Nd5 {[%emt 0:02:53]} 22. Bb2 {[%emt 0:00:26]} Nf6 {[%emt 0:13:43]} 23. Qf3 {[%emt 0:00:06]} Nd5 {[%emt 0:01:19][%cal Oe5e4]} 24. Rab1 {[%emt 0:04:35]} Qd6 {[%emt 0:06:40]} 25. a3 {[%emt 0:06:29] White stays focused until the end.} b5 {[%emt 0:03:56]} 26. Nf1 {[%emt 0:01:56][%cal Bh2f1,Bf1d2,Bd2e4][%mdl 32]} Nf6 {[%emt 0:04:54]} 27. Nd2 {[%emt 0:03:08]} Qd5 {[%emt 0:02:02]} 28. Qxd5 {[%emt 0:01:07]} Nxd5 {[%emt 0:01:50]} 29. Ne4 {[%emt 0:00:29]} c4 {[%emt 0:02:36]} 30. dxc4 {[%emt 0:00:11]} bxc4 {[%emt 0:00:19]} 31. bxc4 {[%emt 0:00:21][%cal Bb3c4,Bc4c5][%mdl 32]} Nb6 {[%emt 0:01:08] [#]} (31... Nf6 $16 {keeps fighting.}) 32. c5 $1 $18 {[%emt 0:00:46]} Nc4 {[%emt 0:02:19] [#]} 33. Bc1 {[%emt 0:00:32] Prevents Nd2.} Rd4 $2 {[%emt 0:02:13]} (33... Rb8 {was worth a try.} 34. Rb4 Rxb4 35. axb4 Rd8) 34. c3 {[%emt 0:03:31]} Rd5 {[%emt 0:02:27]} 35. Rb4 {[%emt 0:00:20][%cal Bb1b4,Bb4a4,Ba4a7,Ba7a8][%mdl 32]} Na5 {[%emt 0:00:19]} 36. Be3 {[%emt 0:01:15] Threatens to win with Reb1.} Red8 {[%emt 0:03:42]} (36... Ra8 $142 37. f6 Bf8) 37. Kf1 {[%emt 0:00:14] Strongly threatening Ra4.} Rd3 $2 {[%emt 0:04:57]} (37... Ra8 38. Reb1 Rd7) 38. Ke2 {[%emt 0:00:47] White is clearly winning.} R3d7 {[%emt 0:02:34]} 39. Ra4 {[%emt 0:01:08]} Nb7 {[%emt 0:03:10]} 40. Rxa7 {[%emt 0:00:00]} Rc8 {[%emt 0:00:00]} 41. Rb1 {[%emt 0:16:27]} Rcc7 {[%emt 0:17:25]} 42. Ra8+ {[%emt 0:00:06]} Kh7 {[%emt 0:00:35]} 43. f6 {[%emt 0:00:28]} Bh8 {[%emt 0:00:32]} 44. a4 {[%emt 0:00:54]} Rd5 {[%emt 0:02:35]} 45. c4 {[%emt 0:00:18]} Rdd7 {[%emt 0:00:48]} 46. g4 {[%emt 0:00:12] Weighted Error Value: White=0.22 (precise) /Black=0.47} 1-0

[Event "Swietokrzyskie IM Chess-ch 2022"]
[Site "Zagnansk"]
[Date "2022.05.02"]
[Round "4.1"]
[White "Sieciechowicz, IM Marcin"]
[Black "Krzywda, CM Andrzej"]
[Result "1/2-1/2"]
[ECO "A57"]
[WhiteElo "2388"]
[BlackElo "2152"]
[Annotator "TA"]
[PlyCount "146"]
[EventDate "2022.04.29"]
[EventCountry "POL"]
[SourceTitle "playchess.com"]
[Source "ChessBase"]
[SourceQuality "1"]
[TimeControl "40/5400+30:1800+30"]

{[%evp 10,146,10,20,16,10,23,12,11,12,23,0,8,0,3,0,23,16,16,18,20,20,11,0,4,5,0,0,0,0,12,12,37,49,48,43,38,38,48,47,46,31,31,31,31,29,55,39,62,35,46,31,39,32,47,39,92,62,53,0,87,53,61,62,54,47,47,42,53,45,48,46,46,38,63,46,65,63,62,45,70,46,61,46,135,65,65,59,59,59,59,59,59,59,65,59,65,55,63,59,59,10,10,0,0,0,0,0,0,0,11,0,0,0,0,0,0,0,12,12,12,0,0,0,0,0,0,0,0,0,0,0,0,0,0,0,0,0,0]} 1. d4 {[%emt 0:00:03][%cal Bd2d4,Bd4d5][%mdl 32]} Nf6 {[%emt 0:00:05]} 2. c4 {[%emt 0:00:04]} c5 {[%emt 0:00:02]} 3. d5 {[%emt 0:00:09]} b5 {[%emt 0:00:05]} 4. Nf3 {[%emt 0:00:13]} Bb7 {[%emt 0:00:11]} 5. Qc2 {[%emt 0:00:25]} bxc4 {[%emt 0:00:06]} 6. e4 {[%emt 0:00:21]} e6 {[%emt 0:00:10] A57: Benko/Volga Gambit.} 7. Bxc4 {[%emt 0:00:05]} exd5 {[%emt 0:00:09]} 8. exd5 {[%emt 0:00:04]} Bxd5 {[%emt 0:00:32]} 9. Bxd5 {[%emt 0:00:15]} Nxd5 {[%emt 0:00:06]} 10. O-O {[%emt 0:00:39] [#] Qe4+ is the strong threat.} Be7 {[%emt 0:00:50]} 11. Re1 {[%emt 0:01:35] Hoping for Qxc5.} Na6 {[%emt 0:01:19][%cal Bb8a6,Ba6c7,Bc7e6][%mdl 32]} 12. Qc4 {[%emt 0:30:38]} Nac7 {[%emt 0:02:03]} 13. Bg5 {[%emt 0:04:14]} O-O {[%emt 0:00:47]} 14. Bxe7 {[%emt 0:03:53]} Nxe7 {[%emt 0:00:08]} 15. Qxc5 {[%emt 0:00:35]} Ne6 {[%emt 0:00:35]} 16. Qa3 {[%emt 0:06:28]} Nc6 {[%emt 0:17:59]} 17. Nc3 {[%emt 0:01:55]} d5 {[%emt 0:04:39]} 18. Rad1 {[%emt 0:02:11]} d4 {[%emt 0:00:46] [#]} 19. Qa4 $146 {[%emt 0:02:59]} ({Predecessor:} 19. Ne4 Qb6 20. Rd2 Rac8 21. Nd6 Rcd8 22. Nc4 Qb7 23. Nce5 Nxe5 24. Nxe5 Rd5 25. Nd3 {1-0 (55) Purdon,C (2057)-Whatley,S (2065) England 2015}) 19... Rc8 {[%emt 0:03:55]} 20. Ne2 {[%emt 0:06:03]} Qb6 {[%emt 0:18:00]} 21. Nexd4 {[%emt 0:01:41]} Ncxd4 {[%emt 0:02:57]} 22. Nxd4 {[%emt 0:00:07]} Qxb2 {[%emt 0:03:04]} 23. Re2 {[%emt 0:10:52]} Qb6 {[%emt 0:00:56] White must now prevent ...Nxd4.} 24. Nxe6 {[%emt 0:02:19]} fxe6 {[%emt 0:00:12]} 25. h3 {[%emt 0:01:40]} Rcd8 {[%emt 0:10:13]} 26. Rde1 {[%emt 0:02:27]} Rd4 {[%emt 0:04:48]} 27. Qc2 {[%emt 0:00:05]} Rdf4 {[%emt 0:01:08]} 28. Rf1 {[%emt 0:00:05]} a5 {[%emt 0:02:59]} 29. Qd3 {[%emt 0:01:40]} R4f6 {[%emt 0:01:56]} 30. Qe4 {[%emt 0:01:06]} Qc5 {[%emt 0:03:13]} 31. Rc2 {[%emt 0:01:13]} Qf5 {[%emt 0:00:25]} 32. Re1 {[%emt 0:03:57][%cal Bf1e1,Be1e3,Be3b3][%mdl 32]} Qg5 {[%emt 0:11:10]} (32... Qxe4 $14 33. Rxe4 Rd8) 33. Qc6 {[%emt 0:04:06]} Qf5 {[%emt 0:02:47]} 34. Qe4 {[%emt 0:00:35]} Qg5 {[%emt 0:00:37]} 35. Re3 {[%emt 0:01:42]} Qb5 {[%emt 0:01:32]} 36. Rb3 {[%emt 0:02:08]} Qd7 {[%emt 0:02:07]} 37. Rd3 {[%emt 0:00:55] Against Qd1+} Qb5 {[%emt 0:00:36] Threatens to win with ...Qb1+.} 38. Rd1 {[%emt 0:03:35] Prevents Qb1.} Qb6 {[%emt 0:00:39][%cal Rf6f2]} 39. Qd4 {[%emt 0:00:59]} Qb7 {[%emt 0:02:26]} 40. Qd7 {[%emt 0:00:00]} Qe4 {[%emt 0:00:00]} 41. Qd3 {[%emt 0:18:35]} Qh4 {[%emt 0:17:28][%cal Rf6f2]} 42. Qe3 {[%emt 0:01:06]} Qh5 {[%emt 0:01:04]} 43. Rd7 {[%emt 0:03:49]} Qf5 $1 {[%emt 0:02:15]} 44. Qd3 {[%emt 0:04:17] White is much more active.} Qe5 {[%emt 0:01:55]} 45. Qd4 {[%emt 0:01:51]} (45. Qe2 $5 {[%cal Re2e5]} Qf5 46. Qd3 $14) 45... Qe1+ {[%emt 0:05:17]} 46. Kh2 {[%emt 0:00:03][%cal Of2f4]} Qb4 {[%emt 0:01:54] [#]} ({Black should play} 46... h6 $14) 47. Qxb4 {[%emt 0:03:45]} ({Better is} 47. Rcc7 $1 $16 R6f7 48. Qe3) 47... axb4 $16 {[%emt 0:00:04][%mdl 4096] Endgame KRR-KRR} 48. f3 {[%emt 0:00:25]} R6f7 {[%emt 0:01:08]} 49. Rd6 {[%emt 0:00:22]} Re7 {[%emt 0:00:48]} 50. Rb6 {[%emt 0:00:47]} Ra8 {[%emt 0:02:53]} 51. Rxb4 Rea7 {[%emt 0:00:08] Prevents a4.} 52. Rbb2 {[%emt 0:00:09]} Kf7 {[%emt 0:00:10]} 53. Re2 {[%emt 0:00:17]} Ra3 {[%emt 0:00:27]} 54. Rb7+ {[%emt 0:00:19]} Kf6 {[%emt 0:00:40]} 55. Re4 {[%emt 0:01:37]} (55. Rb6 $14 {might be stronger.}) 55... R8a4 $11 {[%emt 0:02:37] The position is equal.} 56. Rxa4 {[%emt 0:00:15]} Rxa4 {[%emt 0:00:02] KR-KR} 57. Rb2 {[%emt 0:00:07]} h5 {[%emt 0:00:39]} 58. Kg3 {[%emt 0:01:10]} g5 {[%emt 0:00:30]} 59. Re2 {[%emt 0:00:15]} Kf5 {[%emt 0:01:06]} 60. Rf2 {[%emt 0:01:37]} Ra3 {[%emt 0:00:27]} 61. Kh2 {[%emt 0:00:41]} Kf4 {[%emt 0:00:41]} 62. Re2 {[%emt 0:01:28]} e5 {[%emt 0:00:25]} 63. Kg1 {[%emt 0:01:00]} Kf5 {[%emt 0:00:52]} 64. Kf2 {[%emt 0:01:00]} g4 {[%emt 0:00:39]} 65. Kg3 {[%emt 0:01:51]} gxf3 {[%emt 0:00:27]} 66. gxf3 {[%emt 0:00:11]} Ra4 {[%emt 0:00:50]} 67. h4 {[%emt 0:00:41]} Ra3 {[%emt 0:00:13]} 68. Rb2 {[%emt 0:00:18]} Ra4 {[%emt 0:00:34]} 69. Rb6 {[%emt 0:01:08]} e4 {[%emt 0:01:07]} 70. Rb5+ {[%emt 0:00:18]} Kf6 {[%emt 0:00:51]} 71. f4 {[%emt 0:01:47]} Ra3+ {[%emt 0:00:35]} 72. Kf2 {[%emt 0:00:02]} Rxa2+ {[%emt 0:00:15]} 73. Ke3 {[%emt 0:00:03]} Ra3+ {[%emt 0:00:00] Weighted Error Value: White=0.10 (very precise) /Black=0.07 (flawless)} 1/2-1/2

[Event "Swietokrzyskie IM Chess-ch 2022"]
[Site "Zagnansk"]
[Date "2022.05.02"]
[Round "4.2"]
[White "Wikar, WFM Martyna"]
[Black "Vlachos, IM Anatole"]
[Result "0-1"]
[ECO "C50"]
[WhiteElo "2197"]
[BlackElo "2406"]
[Annotator "TA"]
[PlyCount "96"]
[EventDate "2022.04.29"]
[EventCountry "POL"]
[SourceTitle "playchess.com"]
[Source "ChessBase"]
[SourceQuality "1"]
[TimeControl "40/5400+30:1800+30"]

{[%evp 14,96,21,11,14,20,6,-29,-24,-9,45,40,32,25,34,40,44,0,0,0,0,0,0,0,33,15,46,-21,-21,-30,0,-53,-35,-41,-28,-56,-60,-76,-3,-82,-75,-73,-64,-49,-66,-67,-46,-203,-205,-180,-193,-308,-321,-296,-298,-351,-328,-368,-150,-445,-437,-836,-836,-972,-985,-860,-731,-738,-749,-734,-734,-754,-765,-735,-756,-756,-742,-1522,-1416,-1489,-1408,-961,-864,-1112,-675]} 1. e4 {[%emt 0:00:03]} e5 {[%emt 0:00:05]} 2. Nf3 {[%emt 0:00:12]} Nc6 {[%emt 0:00:06]} 3. Bc4 {[%emt 0:00:09]} Bc5 {[%emt 0:00:20]} 4. d3 {[%emt 0:00:13]} Nf6 {[%emt 0:00:15]} 5. O-O {[%emt 0:00:16]} d6 {[%emt 0:00:24]} 6. c3 {[%emt 0:00:35]} a6 {[%emt 0:00:43]} 7. Bb3 {[%emt 0:00:33] 7.a4 deserves study.} Ba7 {[%emt 0:00:12]} 8. Re1 {[%emt 0:01:29]} h6 {[%emt 0:01:07] C54: Giuoco Piano: 4 c3 Nf6, main lines with 5 d4 and 5 d3.} 9. Nbd2 {[%emt 0:01:04]} g5 {[%emt 0:00:32][%cal Bg7g5,Bg5g4][%mdl 32]} 10. Nf1 {[%emt 0:00:57]} g4 {[%emt 0:01:09] Black has an edge.} 11. N3d2 {[%emt 0:00:17]} Nh5 {[%emt 0:01:07]} (11... h5 $11) 12. Nc4 $14 {[%emt 0:01:46]} Qf6 {[%emt 0:02:51]} 13. Be3 {[%emt 0:01:42]} Nf4 {[%emt 0:00:10]} 14. Bxa7 {[%emt 0:09:27]} Nxa7 {[%emt 0:00:08]} 15. d4 {[%emt 0:02:44] [#] dxe5 is the strong threat.} Bd7 $146 {[%emt 0:11:14]} ({Predecessor:} 15... Nc6 16. Nce3 Rg8 17. Nd5 Nxd5 18. exd5 Ne7 19. dxe5 dxe5 20. Ng3 Ng6 21. c4 Bd7 {1-0 (38) Rodchenkov,S (2346)-Myers,D (1990) Chess.com INT 2020}) 16. Nce3 {[%emt 0:11:16]} O-O-O $1 {[%emt 0:04:13]} 17. Nd5 {[%emt 0:05:38]} (17. Nxg4 $2 Qg7 18. Nfe3 h5 19. Nxe5 dxe5 $19) 17... Nxd5 {[%emt 0:10:21]} 18. Bxd5 {[%emt 0:03:34]} h5 {[%emt 0:02:27]} 19. a4 $1 {[%emt 0:14:03]} h4 {[%emt 0:03:25]} 20. Re3 {[%emt 0:01:32]} ({White should play} 20. b4 $14) 20... Kb8 $11 {[%emt 0:11:43]} 21. b4 {[%emt 0:04:40][%cal Ob4b5]} Nc8 $1 {[%emt 0:01:30]} 22. Bc4 {[%emt 0:07:59]} (22. b5 $11) 22... Ne7 {[%emt 0:06:07]} 23. b5 {[%emt 0:03:18]} a5 {[%emt 0:00:28]} 24. b6 cxb6 {[%emt 0:01:05]} 25. Rb1 {[%emt 0:05:51]} Nc8 {[%emt 0:01:10]} ({Better is} 25... exd4 $1 $17 26. Qxd4 Qxd4 27. cxd4 Bxa4) 26. dxe5 {[%emt 0:01:50]} (26. Bb5 $11) 26... dxe5 $17 {[%emt 0:02:57]} 27. Bd5 {[%emt 0:02:39]} Qe7 {[%emt 0:03:45]} 28. Qb3 {[%emt 0:02:20]} Qc5 {[%emt 0:01:02]} 29. Bxf7 {[%emt 0:02:42]} Rh6 {[%emt 0:12:35]} 30. Rd1 $2 {[%emt 0:02:38]} (30. Bd5 $15) 30... Rf6 $1 $19 {[%emt 0:01:31] aiming for ...Qf8.} 31. Bc4 {[%emt 0:05:01]} Nd6 {[%emt 0:06:31][%cal Bc8d6,Bd6e4,Be4g5,Bg5f3][%mdl 32]} ({Stronger than} 31... Bxa4 32. Qxa4 Rxd1 33. Qxd1 $17) 32. Be2 {[%emt 0:03:39]} (32. Bd5 $142) 32... Bc6 {[%emt 0:02:50]} 33. Bxg4 {[%emt 0:02:19] [#]} Rdf8 $1 {[%emt 0:00:01]} 34. Bf3 {[%emt 0:02:08] [#]} Nxe4 {[%emt 0:02:49][%mdl 512]} 35. Qc2 {[%emt 0:01:31] [#]} (35. Bxe4 Rxf2) 35... Rxf3 {[%emt 0:03:00]} 36. gxf3 $2 {[%emt 0:00:52] This costs White the game.} (36. Rxf3 $17 Rxf3 37. gxf3) 36... Rg8+ {[%emt 0:01:12] Black is clearly winning.} ({But not} 36... Ng5 $2 37. Nd2 $19) 37. Kh1 {[%emt 0:01:11]} (37. Ng3 $142 Ng5 38. Qb3) 37... Ng5 {[%emt 0:01:41]} 38. Nd2 {[%emt 0:00:35] [#]} Nxf3 $1 {[%emt 0:00:41][%mdl 512]} 39. Ne4 {[%emt 0:00:29]} Qc4 {[%emt 0:01:22][%cal Oc4e6]} 40. Qe2 {[%emt 0:00:00]} Qxe2 {[%emt 0:00:00]} 41. Rxe2 {[%emt 0:15:46]} Rg4 {[%emt 0:16:46]} 42. h3 {[%emt 0:02:57]} Rxe4 {[%emt 0:00:10]} 43. Rxe4 {[%emt 0:00:07]} Bxe4 {[%emt 0:00:05]} 44. Rd8+ {[%emt 0:01:55]} Kc7 {[%emt 0:00:10]} 45. Rh8 {[%emt 0:00:53]} Bc6 {[%emt 0:00:07]} 46. Kg2 {[%emt 0:00:24]} e4 {[%emt 0:00:13]} 47. Kf1 {[%emt 0:01:06]} Bxa4 {[%emt 0:00:20]} 48. Ke2 {[%emt 0:00:15]} Bc2 {[%emt 0:01:20] Weighted Error Value: White=0.60/Black=0.13 (very precise)} 0-1